fUSD/lending_fUSD_20260304
["ID","MTS","AMOUNT","RATE_DAILY","PERIOD"]
[407655328,1772619071785,-1440.67837536,0.00032876,2]
[407655329,1772619071798,-1440.67837536,0.00032876,2]
[407655330,1772619071807,-1440.67837536,0.00032876,2]
[407655331,1772619071817,-1440.67837536,0.00032876,2]
[407655332,1772619071827,-1440.67837536,0.00032876,2]
[407655333,1772619071837,-1440.67837536,0.00032876,2]
[407655334,1772619071847,-1440.67837536,0.00032876,2]
[407655335,1772619071856,-1440.67837536,0.00032876,2]
[407655336,1772619071864,-1440.67837536,0.00032876,2]
[407655337,1772619071873,-1440.67837536,0.00032876,2]
[407655338,1772619071881,-1440.67837536,0.00032876,2]
[407655339,1772619071889,-1440.67837536,0.00032876,2]
[407655340,1772619071897,-1440.67837536,0.00032876,2]
[407655341,1772619071906,-1440.67837536,0.00032876,2]
[407655342,1772619071915,-1440.67837536,0.00032876,2]
[407655343,1772619071927,-1440.67837536,0.00032876,2]
[407655344,1772619071936,-1440.67837536,0.00032876,2]
[407655345,1772619071945,-1440.67837536,0.00032876,2]
[407655346,1772619071954,-1440.67837536,0.00032876,2]
[407655347,1772619071963,-1440.67837536,0.00032876,2]
[407655348,1772619071973,-1440.67837536,0.00032876,2]
[407655349,1772619071983,-1440.67837536,0.00032876,2]
[407655350,1772619071992,-1440.67837536,0.00032876,2]
[407655351,1772619072001,-1440.67837536,0.00032876,2]
[407655352,1772619072011,-1440.67837536,0.00032876,2]
[407655353,1772619072020,-1440.67837536,0.00032876,2]
[407655354,1772619072029,-1440.67837536,0.00032876,2]
[407655355,1772619072039,-1440.67837536,0.00032876,2]
[407655356,1772619072050,-1440.67837536,0.00032876,2]
[407655357,1772619072059,-1440.67837536,0.00032876,2]
[407655358,1772619072069,-1440.67837536,0.00032876,2]
[407655359,1772619072080,-1440.67837536,0.00032876,2]
[407655360,1772619072090,-1440.67837536,0.00032876,2]
[407655361,1772619072099,-1440.67837536,0.00032876,2]
[407655362,1772619072108,-1440.67837536,0.00032876,2]
[407655363,1772619072118,-1440.67837536,0.00032876,2]
[407655364,1772619072127,-1440.67837536,0.00032876,2]
[407655365,1772619072136,-1440.67837536,0.00032876,2]
[407655366,1772619072145,-1440.67837536,0.00032876,2]
[407655367,1772619072155,-1406.21387114,0.00032876,2]
[407655368,1772619072164,-1406.21387114,0.00032876,2]
[407655369,1772619072173,-1406.21387114,0.00032876,2]
[407655370,1772619072182,-1406.21387114,0.00032876,2]
[407655371,1772619072195,-1406.21387114,0.00032876,2]
[407655372,1772619072205,-1406.21387114,0.00032876,2]
[407655373,1772619072215,-1406.21387114,0.00032876,2]
[407655374,1772619072224,-1406.21387114,0.00032876,2]
[407655375,1772619072233,-1406.21387114,0.00032876,2]
[407655376,1772619072243,-1406.21387114,0.00032876,2]
[407655377,1772619072252,-1406.21387114,0.00032876,2]
[407655378,1772619072261,-1406.21387114,0.00032876,2]
[407655379,1772619072271,-1406.21387114,0.00032876,2]
[407655380,1772619072281,-1406.21387114,0.00032876,2]
[407655381,1772619072294,-1406.21387114,0.00032876,2]
[407655382,1772619072303,-1406.21387107,0.00032876,2]
[407655383,1772619072312,-346.55,0.00032877,2]
[407655384,1772619072324,-1539.24,0.00032877,2]
[407655385,1772619072335,-500.0,0.00032877,2]
[407655386,1772619072344,-500.0,0.00032877,2]
[407655387,1772619072354,-500.0,0.00032877,2]
[407655388,1772619072364,-377.3266792,0.00032877,2]
[407655389,1772619072373,-500.0,0.00032877,2]
[407655390,1772619072383,-500.0,0.00032877,2]
[407655391,1772619072392,-500.24456871,0.00032877,2]
[407655392,1772619072401,-7043.05,0.000329,2]
[407655393,1772619072411,-4973.44,0.000329,14]
[407655394,1772619072420,-81173.0,0.000329,20]
[407655395,1772619072429,-51573.86019775,0.00033,2]
[407655396,1772619072439,-26520.35661016,0.00033,2]
[407655397,1772619072448,-154.40552193,0.00033,2]
[407655398,1772619072457,-160.0,0.00033,30]
[407655399,1772619072468,-562.715164,0.00033,14]
[407655400,1772619072488,-150.0,0.00033043,2]
[407655401,1772619072508,-1022.23,0.00033129,120]
[407655402,1772619072519,-272.0,0.00033493,3]
[407655403,1772619072529,-1218.0108469,0.000335,2]
[407655404,1772619072538,-179.74,0.000335,30]
[407655405,1772619072547,-1022.23,0.00033506,120]
[407655406,1772619072557,-152.0,0.00033712,5]
[407655407,1772619072566,-506.0,0.000338,19]
[407655408,1772619072575,-1022.23,0.00033882,120]
[407655409,1772619072585,-81173.0,0.0003395,20]
[407655410,1772619072597,-2000.0,0.00034,2]
[407655411,1772619072607,-1022.23,0.00034259,120]
[407655412,1772619072617,-2000.11,0.00034323,2]
[407655413,1772619072626,-1740.82413187,0.0003449,2]
[407655414,1772619072635,-4973.44,0.000345,14]
[407655415,1772619072644,-1212.0,0.00034556,2]
[407655416,1772619072653,-921.0,0.00034556,2]
[407655417,1772619072663,-2458.0,0.00034556,2]
[407655418,1772619072673,-1022.23,0.00034635,120]
[407655419,1772619072682,-150.0,0.00034696,2]
[407655420,1772619072692,-7043.05,0.000347,2]
[407655421,1772619072701,-1927.93202216,0.00035,2]
[407655422,1772619072710,-804.19267943,0.00035,2]
[407655423,1772619072720,-500.0,0.00035,20]
[407655424,1772619072729,-151.0,0.00035,5]
[407655425,1772619072738,-151.0,0.00035,7]
[407655426,1772619072747,-218.89257597,0.00035,7]
[407655427,1772619072757,-160.0,0.00035,120]
[407655428,1772619072766,-81173.0,0.00035,20]
[407655429,1772619072778,-1022.23,0.00035012,120]
[407655430,1772619072787,-3501.0,0.00035364,2]
[407655431,1772619072798,-1341.0,0.00035364,2]
[407655432,1772619072807,-1022.23,0.00035388,120]
[407655433,1772619072817,-500.0,0.00035425,2]
[407655434,1772619072826,-272.0,0.00035429,3]
[407655435,1772619072836,-143772.43222813,0.0003561,2]
[407655436,1772619072846,-4456.07896235,0.0003561,2]
[407655437,1772619072857,-5000.0,0.0003561,2]
[407655438,1772619072866,-50041.75380103,0.0003561,2]
[407655439,1772619072875,-25020.70224501,0.0003561,2]
[407655440,1772619072885,-1539.24,0.00035616,2]
[407655441,1772619072895,-300.0,0.00035616,7]
[407655442,1772619072904,-300.0,0.00035616,7]
[407655443,1772619072913,-300.0,0.00035616,7]
[407655444,1772619072922,-300.0,0.00035616,7]
[407655445,1772619072931,-300.0,0.00035616,7]
[407655446,1772619072941,-300.0,0.00035616,7]
[407655447,1772619072950,-300.416202,0.00035616,7]
[407655448,1772619072961,-1022.23,0.00035765,120]
[407655449,1772619072971,-350.0,0.00035769,14]
[407655450,1772619072980,-4973.44,0.000359,14]
[407655451,1772619072989,-467904.79466882,0.00036,10]
[407655452,1772619072999,-125844.64323679,0.00036,2]
[407655453,1772619073008,-717.25062558,0.00036,2]
[407655454,1772619073018,-235916.1557304,0.00036,2]
[407655455,1772619073027,-30049.41793964,0.00036,2]
[407655456,1772619073037,-81173.0,0.0003605,20]
[407655457,1772619073051,-7043.05,0.000361,2]
[407655458,1772619073061,-1022.23,0.00036141,120]
[407655459,1772619073071,-152.0,0.00036203,6]
[407655460,1772619073080,-150.0,0.0003643,2]
[407655461,1772619073090,-1022.23,0.00036518,120]
[407655462,1772619073102,-1000.0,0.0003674,2]
[407655463,1772619073111,-1000.0,0.0003674,2]
[407655464,1772619073121,-1000.0,0.0003674,2]
[407655465,1772619073131,-1000.0,0.0003674,2]
[407655466,1772619073140,-1000.0,0.0003674,2]
[407655467,1772619073152,-1000.0,0.0003678,2]
[407655468,1772619073162,-1000.0,0.0003678,2]
[407655469,1772619073172,-1000.0,0.0003678,2]
[407655470,1772619073182,-1000.0,0.0003678,2]
[407655471,1772619073192,-1000.0,0.0003678,2]
[407655472,1772619073202,-1619.67220876,0.000368,2]
[407655473,1772619073212,-165993.3,0.000368,14]
[407655474,1772619073221,-5011.97447262,0.0003688,120]
[407655475,1772619073229,-1022.23,0.00036894,120]
[407655476,1772619073238,-161.0,0.000369,120]
[407655477,1772619073246,-14208.20731773,0.0003691,2]
[407655478,1772619073255,-365.0,0.00037,2]
[407655479,1772619073263,-166.62446394,0.00037,2]
[407655480,1772619073272,-160.0,0.00037,120]
[407655481,1772619073286,-4973.44,0.00037,14]
[407655482,1772619073295,-81173.0,0.000371,20]
[407655483,1772619073305,-156.05519642,0.000372,120]
[407655484,1772619073314,-156.05519638,0.000372,120]
[407655485,1772619073325,-156.05519638,0.000372,120]
[407655486,1772619073335,-156.05519638,0.000372,120]
[407655487,1772619073346,-156.05519638,0.000372,120]
[407655488,1772619073355,-1022.23,0.00037271,120]
[407655489,1772619073366,-272.0,0.00037366,3]
[407655490,1772619073375,-7043.05,0.000374,2]
[407655491,1772619073394,-921.0,0.00037556,2]
[407655492,1772619073405,-2458.0,0.00037556,2]
[407655493,1772619073414,-4357.78990865,0.0003759,2]
[407655494,1772619073423,-1022.23,0.00037647,120]
[407655495,1772619073432,-2000.0,0.000377,2]
[407655496,1772619073441,-203.31257145,0.0003788,2]
[407655497,1772619073458,-151.0,0.00038,7]
[407655498,1772619073479,-4973.44,0.00038,14]
[407655499,1772619073489,-1022.23,0.00038024,120]
[407655500,1772619073501,-81173.0,0.0003815,20]
[407655501,1772619073512,-150.0,0.00038252,2]
[407655502,1772619073522,-769.153,0.00038364,2]
[407655503,1772619073533,-1341.0,0.00038364,2]
[407655504,1772619073544,-1022.23,0.000384,120]
[407655505,1772619073554,-7043.05,0.000386,30]
[407655506,1772619073569,-152.0,0.00038695,7]
[407655507,1772619073581,-161.0,0.00038745,120]
[407655508,1772619073591,-8043.1363066,0.00038834,2]
[407655509,1772619073600,-30941.00594046,0.00039,2]
[407655510,1772619073610,-4973.44,0.00039,14]
[407655511,1772619073620,-500.0,0.00039288,2]
[407655512,1772619073630,-272.0,0.00039302,3]
[407655513,1772619073640,-525.96957539,0.00039569,51]
[407655514,1772619073649,-392.32799935,0.0004,2]
[407655515,1772619073659,-1567.70439582,0.0004,2]
[407655516,1772619073670,-4127.10070845,0.0004,2]
[407655517,1772619073680,-219.771921,0.0004,2]
[407655518,1772619073689,-960.84534892,0.0004,2]
[407655519,1772619073698,-602.27537266,0.0004,2]
[407655520,1772619073707,-316.15022995,0.0004,2]
[407655521,1772619073715,-162.33900194,0.0004,2]
[407655522,1772619073725,-10734.64877546,0.0004,2]
[407655523,1772619073734,-150.0,0.0004,2]
[407655524,1772619073744,-165.0,0.0004,21]
[407655525,1772619073754,-500.0,0.0004,7]
[407655526,1772619073763,-161.05264218,0.0004,30]
[407655527,1772619073773,-165.59016869,0.0004,90]
[407655528,1772619073782,-459.48,0.0004,120]
[407655529,1772619073791,-132596.41194006,0.0004,2]
[407655530,1772619073801,-17502.0600422,0.0004,8]
[407655531,1772619073810,-357.01,0.0004,120]
[407655532,1772619073819,-2000.0,0.0004,120]
[407655533,1772619073831,-150.87,0.0004,2]
[407655534,1772619073841,-150.87,0.0004,2]
[407655535,1772619073850,-150.87,0.0004,2]
[407655536,1772619073860,-150.87,0.0004,2]
[407655537,1772619073869,-150.87,0.0004,2]
[407655538,1772619073879,-150.87,0.0004,2]
[407655539,1772619073888,-150.87,0.0004,2]
[407655540,1772619073898,-150.87,0.0004,2]
[407655541,1772619073907,-150.87,0.0004,2]
[407655542,1772619073916,-150.87,0.0004,2]
[407655543,1772619073925,-150.87,0.0004,2]
[407655544,1772619073934,-150.87,0.0004,2]
[407655545,1772619073944,-150.87,0.0004,2]
[407655546,1772619073953,-150.87,0.0004,2]
[407655547,1772619073963,-150.87,0.0004,2]
[407655548,1772619073972,-150.87,0.0004,2]
[407655549,1772619073981,-7043.05,0.000401,30]
[407655550,1772619073990,-150.0,0.00040165,2]
[407655551,1772619074000,-506.0,0.000404,25]
[407655552,1772619074011,-1619.848,0.00040531,58]
[407655553,1772619074020,-2458.0,0.00040556,2]
[407655554,1772619074029,-4973.44,0.000406,14]
[407655555,1772619074039,-241442.74254334,0.000407,6]
[407655556,1772619074048,-1176.0,0.0004078,120]
[407655557,1772619074057,-1966.33232689,0.000409,2]
[407655558,1772619074066,-56830.54611479,0.00041,5]
[407655559,1772619074075,-400.0,0.00041,7]
[407655560,1772619074086,-301.1056249,0.00041068,22]
[407655561,1772619074096,-745.0,0.00041096,120]
[407655562,1772619074266,-800.0,0.00041096,14]
[407655563,1772619074276,-800.0,0.00041096,14]
[407655564,1772619074287,-800.0,0.00041096,14]
[407655565,1772619074299,-800.0,0.00041096,14]
[407655566,1772619074312,-800.0,0.00041096,14]
[407655567,1772619074321,-800.0,0.00041096,14]
[407655568,1772619074332,-800.0,0.00041096,14]
[407655569,1772619074342,-800.0,0.00041096,14]
[407655570,1772619074352,-3483.47,0.00041096,90]
[407655571,1772619074362,-151.0,0.00041096,120]
[407655572,1772619074372,-151.0,0.00041096,120]
[407655573,1772619074383,-151.0,0.00041096,120]
[407655574,1772619074392,-151.0,0.00041096,120]
[407655575,1772619074413,-169.045409,0.00041096,120]
[407655576,1772619074422,-151.0,0.00041096,120]
[407655577,1772619074432,-151.0,0.00041096,120]
[407655578,1772619074441,-156.299588,0.00041096,120]
[407655579,1772619074451,-151.0,0.00041096,120]
[407655580,1772619074460,-151.0,0.00041096,120]
[407655581,1772619074470,-151.0,0.00041096,120]
[407655582,1772619074480,-151.0,0.00041096,120]
[407655583,1772619074490,-151.0,0.00041096,120]
[407655584,1772619074499,-151.0,0.00041096,120]
[407655585,1772619074509,-151.0,0.00041096,120]
[407655586,1772619074518,-151.0,0.00041096,120]
[407655587,1772619074527,-151.0,0.00041096,120]
[407655588,1772619074536,-180.78306,0.00041096,120]
[407655589,1772619074546,-151.0,0.00041096,120]
[407655590,1772619074556,-151.0,0.00041096,120]
[407655591,1772619074565,-151.0,0.00041096,120]
[407655592,1772619074575,-153.280059,0.00041096,120]
[407655593,1772619074585,-151.0,0.00041096,120]
[407655594,1772619074595,-153.993321,0.00041096,120]
[407655595,1772619074605,-174.856894,0.00041096,120]
[407655596,1772619074615,-151.0,0.00041096,120]
[407655597,1772619074624,-151.0,0.00041096,120]
[407655598,1772619074633,-151.0,0.00041096,120]
[407655599,1772619074642,-151.0,0.00041096,120]
[407655600,1772619074652,-151.0,0.00041096,120]
[407655601,1772619074661,-151.0,0.00041096,120]
[407655602,1772619074670,-193.210993,0.00041096,120]
[407655603,1772619074680,-151.0,0.00041096,120]
[407655604,1772619074689,-151.0,0.00041096,120]
[407655605,1772619074698,-159.569367,0.00041096,120]
[407655606,1772619074708,-151.0,0.00041096,120]
[407655607,1772619074718,-151.0,0.00041096,120]
[407655608,1772619074728,-151.0,0.00041096,120]
[407655609,1772619074738,-151.0,0.00041096,120]
[407655610,1772619074747,-151.0,0.00041096,120]
[407655611,1772619074757,-190.555767,0.00041096,120]
[407655612,1772619074766,-151.0,0.00041096,120]
[407655613,1772619074775,-151.0,0.00041096,120]
[407655614,1772619074785,-151.0,0.00041096,120]
[407655615,1772619074794,-151.0,0.00041096,120]
[407655616,1772619074803,-151.0,0.00041096,120]
[407655617,1772619074813,-151.0,0.00041096,120]
[407655618,1772619074823,-151.0,0.00041096,120]
[407655619,1772619074833,-151.0,0.00041096,120]
[407655620,1772619074842,-151.0,0.00041096,120]
[407655621,1772619074852,-151.0,0.00041096,120]
[407655622,1772619074862,-221.90858,0.00041096,120]
[407655623,1772619074871,-151.0,0.00041096,120]
[407655624,1772619074880,-151.0,0.00041096,120]
[407655625,1772619074890,-151.0,0.00041096,120]
[407655626,1772619074900,-151.663441,0.00041096,120]
[407655627,1772619074909,-151.0,0.00041096,120]
[407655628,1772619074919,-151.0,0.00041096,120]
[407655629,1772619074929,-151.0,0.00041096,120]
[407655630,1772619074938,-151.0,0.00041096,120]
[407655631,1772619074947,-151.0,0.00041096,120]
[407655632,1772619074958,-151.0,0.00041096,120]
[407655633,1772619074969,-151.0,0.00041096,120]
[407655634,1772619074979,-151.0,0.00041096,120]
[407655635,1772619074988,-151.0,0.00041096,120]
[407655636,1772619074999,-174.113016,0.00041096,120]
[407655637,1772619075008,-151.0,0.00041096,120]
[407655638,1772619075018,-151.0,0.00041096,120]
[407655639,1772619075027,-158.828548,0.00041096,15]
[407655640,1772619075037,-463.564965,0.00041096,120]
[407655641,1772619075047,-463.564965,0.00041096,120]
[407655642,1772619075056,-463.564965,0.00041096,120]
[407655643,1772619075070,-463.564965,0.00041096,120]
[407655644,1772619075081,-463.564965,0.00041096,120]
[407655645,1772619075090,-463.564965,0.00041096,120]
[407655646,1772619075100,-463.564965,0.00041096,120]
[407655647,1772619075109,-463.564965,0.00041096,120]
[407655648,1772619075118,-463.564965,0.00041096,120]
[407655649,1772619075128,-463.564965,0.00041096,120]
[407655650,1772619075137,-463.564965,0.00041096,120]
[407655651,1772619075147,-463.564965,0.00041096,120]
[407655652,1772619075156,-463.564965,0.00041096,120]
[407655653,1772619075165,-463.564965,0.00041096,120]
[407655654,1772619075175,-463.564965,0.00041096,120]
[407655655,1772619075184,-463.564965,0.00041096,120]
[407655656,1772619075192,-463.564965,0.00041096,120]
[407655657,1772619075202,-463.564965,0.00041096,120]
[407655658,1772619075211,-463.564965,0.00041096,120]
[407655659,1772619075221,-463.564967,0.00041096,120]
[407655660,1772619075230,-435.511801,0.00041096,120]
[407655661,1772619075240,-435.511801,0.00041096,120]
[407655662,1772619075249,-435.511801,0.00041096,120]
[407655663,1772619075259,-435.511801,0.00041096,120]
[407655664,1772619075269,-435.511801,0.00041096,120]
[407655665,1772619075282,-435.511801,0.00041096,120]
[407655666,1772619075291,-435.511801,0.00041096,120]
[407655667,1772619075300,-435.511801,0.00041096,120]
[407655668,1772619075310,-435.511801,0.00041096,120]
[407655669,1772619075319,-435.511801,0.00041096,120]
[407655670,1772619075331,-435.511801,0.00041096,120]
[407655671,1772619075340,-435.511801,0.00041096,120]
[407655672,1772619075349,-435.511801,0.00041096,120]
[407655673,1772619075361,-435.511801,0.00041096,120]
[407655674,1772619075370,-435.511801,0.00041096,120]
[407655675,1772619075379,-435.511801,0.00041096,120]
[407655676,1772619075391,-435.511801,0.00041096,120]
[407655677,1772619075400,-435.511801,0.00041096,120]
[407655678,1772619075411,-435.511801,0.00041096,120]
[407655679,1772619075421,-435.511796,0.00041096,120]
[407655680,1772619075431,-151.0,0.00041096,120]
[407655681,1772619075440,-151.0,0.00041096,120]
[407655682,1772619075450,-151.0,0.00041096,120]
[407655683,1772619075459,-151.0,0.00041096,120]
[407655684,1772619075469,-151.0,0.00041096,120]
[407655685,1772619075478,-151.0,0.00041096,120]
[407655686,1772619075488,-151.0,0.00041096,120]
[407655687,1772619075497,-151.0,0.00041096,120]
[407655688,1772619075507,-151.0,0.00041096,120]
[407655689,1772619075516,-160.024662,0.00041096,120]
[407655690,1772619075526,-201.299815,0.00041096,120]
[407655691,1772619075536,-201.299815,0.00041096,120]
[407655692,1772619075545,-201.299815,0.00041096,120]
[407655693,1772619075554,-201.299815,0.00041096,120]
[407655694,1772619075564,-201.299815,0.00041096,120]
[407655695,1772619075573,-201.299815,0.00041096,120]
[407655696,1772619075583,-201.299815,0.00041096,120]
[407655697,1772619075593,-201.299815,0.00041096,120]
[407655698,1772619075602,-201.299815,0.00041096,120]
[407655699,1772619075611,-201.299815,0.00041096,120]
[407655700,1772619075621,-201.299815,0.00041096,120]
[407655701,1772619075632,-201.299815,0.00041096,120]
[407655702,1772619075641,-201.299815,0.00041096,120]
[407655703,1772619075651,-201.299815,0.00041096,120]
[407655704,1772619075660,-201.299815,0.00041096,120]
[407655705,1772619075669,-201.299815,0.00041096,120]
[407655706,1772619075679,-201.299815,0.00041096,120]
[407655707,1772619075690,-201.299815,0.00041096,120]
[407655708,1772619075700,-201.299815,0.00041096,120]
[407655709,1772619075709,-201.299819,0.00041096,120]
[407655710,1772619075719,-151.0,0.00041096,120]
[407655711,1772619075728,-151.0,0.00041096,120]
[407655712,1772619075737,-151.0,0.00041096,120]
[407655713,1772619075746,-259.330384,0.00041096,120]
[407655714,1772619075756,-151.0,0.00041096,120]
[407655715,1772619075767,-151.0,0.00041096,120]
[407655716,1772619075777,-151.0,0.00041096,120]
[407655717,1772619075786,-151.0,0.00041096,120]
[407655718,1772619075795,-151.0,0.00041096,120]
[407655719,1772619075805,-213.941419,0.00041096,120]
[407655720,1772619075815,-239.542144,0.00041096,120]
[407655721,1772619075828,-239.542144,0.00041096,120]
[407655722,1772619075839,-239.542144,0.00041096,120]
[407655723,1772619075849,-239.542144,0.00041096,120]
[407655724,1772619075858,-239.542144,0.00041096,120]
[407655725,1772619075868,-239.542144,0.00041096,120]
[407655726,1772619075877,-239.542144,0.00041096,120]
[407655727,1772619075887,-239.542144,0.00041096,120]
[407655728,1772619075897,-239.542144,0.00041096,120]
[407655729,1772619075906,-239.542144,0.00041096,120]
[407655730,1772619075915,-239.542144,0.00041096,120]
[407655731,1772619075925,-239.542144,0.00041096,120]
[407655732,1772619075934,-239.542144,0.00041096,120]
[407655733,1772619075944,-239.542144,0.00041096,120]
[407655734,1772619075954,-239.542144,0.00041096,120]
[407655735,1772619075964,-157.143845,0.00041096,120]
[407655736,1772619075973,-239.542144,0.00041096,120]
[407655737,1772619075983,-157.143845,0.00041096,120]
[407655738,1772619075992,-239.542144,0.00041096,120]
[407655739,1772619076002,-157.143845,0.00041096,120]
[407655740,1772619076011,-239.542144,0.00041096,120]
[407655741,1772619076020,-157.143845,0.00041096,120]
[407655742,1772619076030,-239.542144,0.00041096,120]
[407655743,1772619076039,-157.143845,0.00041096,120]
[407655744,1772619076048,-239.54215,0.00041096,120]
[407655745,1772619076057,-157.143845,0.00041096,120]
[407655746,1772619076066,-157.143845,0.00041096,120]
[407655747,1772619076076,-157.143845,0.00041096,120]
[407655748,1772619076085,-157.143845,0.00041096,120]
[407655749,1772619076095,-157.143845,0.00041096,120]
[407655750,1772619076104,-157.143845,0.00041096,120]
[407655751,1772619076113,-157.143845,0.00041096,120]
[407655752,1772619076122,-157.143845,0.00041096,120]
[407655753,1772619076131,-157.143845,0.00041096,120]
[407655754,1772619076140,-157.143845,0.00041096,120]
[407655755,1772619076149,-157.143845,0.00041096,120]
[407655756,1772619076158,-157.143845,0.00041096,120]
[407655757,1772619076168,-157.143845,0.00041096,120]
[407655758,1772619076177,-157.143845,0.00041096,120]
[407655759,1772619076186,-157.143849,0.00041096,120]
[407655760,1772619076196,-1178.089089,0.00041096,120]
[407655761,1772619076205,-1178.089089,0.00041096,120]
[407655762,1772619076215,-1178.089089,0.00041096,120]
[407655763,1772619076224,-1178.089089,0.00041096,120]
[407655764,1772619076234,-1178.089089,0.00041096,120]
[407655765,1772619076243,-1178.089089,0.00041096,120]
[407655766,1772619076252,-1178.089089,0.00041096,120]
[407655767,1772619076261,-151.0,0.00041096,120]
[407655768,1772619076270,-1178.089089,0.00041096,120]
[407655769,1772619076280,-151.0,0.00041096,120]
[407655770,1772619076292,-151.0,0.00041096,120]
[407655771,1772619076302,-1178.089089,0.00041096,120]
[407655772,1772619076311,-1178.089089,0.00041096,120]
[407655773,1772619076320,-151.0,0.00041096,120]
[407655774,1772619076331,-1178.089089,0.00041096,120]
[407655775,1772619076341,-151.0,0.00041096,120]
[407655776,1772619076351,-1178.089089,0.00041096,120]
[407655777,1772619076361,-151.0,0.00041096,120]
[407655778,1772619076370,-1178.089089,0.00041096,120]
[407655779,1772619076380,-151.0,0.00041096,120]
[407655780,1772619076389,-1178.089089,0.00041096,120]
[407655781,1772619076398,-1178.089089,0.00041096,120]
[407655782,1772619076408,-156.946584,0.00041096,120]
[407655783,1772619076417,-1178.089089,0.00041096,120]
[407655784,1772619076426,-1178.089089,0.00041096,120]
[407655785,1772619076436,-1178.089089,0.00041096,120]
[407655786,1772619076446,-1178.089089,0.00041096,120]
[407655787,1772619076456,-1178.089089,0.00041096,120]
[407655788,1772619076465,-151.0,0.00041096,120]
[407655789,1772619076475,-151.0,0.00041096,120]
[407655790,1772619076485,-166.304789,0.00041096,120]
[407655791,1772619076495,-151.0,0.00041096,120]
[407655792,1772619076504,-151.0,0.00041096,120]
[407655793,1772619076514,-151.0,0.00041096,120]
[407655794,1772619076524,-151.0,0.00041096,120]
[407655795,1772619076533,-151.0,0.00041096,120]
[407655796,1772619076543,-151.0,0.00041096,120]
[407655797,1772619076552,-151.0,0.00041096,120]
[407655798,1772619076562,-198.443601,0.00041096,120]
[407655799,1772619076571,-166.039775,0.00041096,120]
[407655800,1772619076581,-151.0,0.00041096,120]
[407655801,1772619076592,-151.0,0.00041096,120]
[407655802,1772619076744,-151.0,0.00041096,120]
[407655803,1772619076754,-208.630964,0.00041096,120]
[407655804,1772619076763,-151.0,0.00041096,120]
[407655805,1772619076772,-151.0,0.00041096,120]
[407655806,1772619076781,-151.0,0.00041096,120]
[407655807,1772619076791,-151.0,0.00041096,120]
[407655808,1772619076800,-151.0,0.00041096,120]
[407655809,1772619076809,-151.0,0.00041096,120]
[407655810,1772619076819,-151.0,0.00041096,120]
[407655811,1772619076827,-151.0,0.00041096,120]
[407655812,1772619076839,-151.0,0.00041096,120]
[407655813,1772619076848,-151.0,0.00041096,120]
[407655814,1772619076858,-151.0,0.00041096,120]
[407655815,1772619076867,-151.0,0.00041096,120]
[407655816,1772619076877,-151.0,0.00041096,120]
[407655817,1772619076886,-151.0,0.00041096,120]
[407655818,1772619076896,-151.0,0.00041096,120]
[407655819,1772619076906,-151.0,0.00041096,120]
[407655820,1772619076916,-151.0,0.00041096,120]
[407655821,1772619076925,-177.989061,0.00041096,120]
[407655822,1772619076934,-151.0,0.00041096,120]
[407655823,1772619076943,-151.0,0.00041096,120]
[407655824,1772619076953,-151.0,0.00041096,120]
[407655825,1772619076962,-151.0,0.00041096,120]
[407655826,1772619076971,-151.0,0.00041096,120]
[407655827,1772619076980,-153.859363,0.00041096,120]